fUST/lending_fUST_20250719
["ID","MTS","AMOUNT","RATE_DAILY","PERIOD"]
[373204440,1752905445685,-2616.74,0.00019726,2]
[373204441,1752905445697,-824.43,0.00019726,2]
[373204442,1752905445706,-506.58,0.00019726,2]
[373204443,1752905445715,-2019.14,0.00019726,2]
[373204444,1752905445725,-500.0,0.00019798,2]
[373204445,1752905445734,-4760.15730783,0.00019934,2]
[373204446,1752905445743,-1500.0,0.00019935,2]
[373204447,1752905445753,-507.05108731,0.00019935,2]
[373204448,1752905445762,-430.74729656,0.0002,2]
[373204449,1752905445771,-1308.88,0.0002,2]
[373204450,1752905445781,-1089.26,0.0002,2]
[373204451,1752905445791,-460.0,0.0002,2]
[373204452,1752905445801,-460.0,0.0002,2]
[373204453,1752905445811,-548.26,0.0002,2]
[373204454,1752905445820,-497.33,0.0002,2]
[373204455,1752905445829,-1127.2,0.0002,2]
[373204456,1752905445839,-3245.34,0.0002,2]
[373204457,1752905445850,-843.68,0.0002,2]
[373204458,1752905445859,-460.0,0.0002,2]
[373204459,1752905445868,-460.0,0.0002,2]
[373204460,1752905445878,-592.34,0.0002,2]
[373204461,1752905445887,-2105.14,0.0002,2]
[373204462,1752905445897,-1080.79,0.0002,2]
[373204463,1752905445906,-796.7,0.0002,2]
[373204464,1752905445915,-277.86689173,0.0002,2]
[373204465,1752905445924,-460.0,0.0002,2]
[373204466,1752905445934,-4129.85,0.0002,2]
[373204467,1752905445943,-1314.16,0.0002,2]
[373204468,1752905445953,-460.0,0.0002,2]
[373204469,1752905445962,-921.73,0.0002,2]
[373204470,1752905445972,-491.64,0.0002,2]
[373204471,1752905445981,-460.0,0.0002,2]
[373204472,1752905445991,-460.0,0.0002,2]
[373204473,1752905446001,-460.0,0.0002,2]
[373204474,1752905446010,-1882.27,0.0002,2]
[373204476,1752905446020,-629.48,0.0002,2]
[373204477,1752905446030,-460.0,0.0002,2]
[373204478,1752905446040,-460.0,0.0002,2]
[373204479,1752905446050,-466.23,0.0002,2]
[373204480,1752905446060,-1409.13,0.0002,2]
[373204481,1752905446069,-496.67,0.0002,2]
[373204482,1752905446079,-2109.32,0.0002,2]
[373204483,1752905446089,-508.5957543,0.0002,2]
[373204484,1752905446098,-460.0,0.0002,2]
[373204485,1752905446108,-2616.74,0.0002,2]
[373204486,1752905446117,-824.43,0.0002,2]
[373204487,1752905446127,-506.58,0.0002,2]
[373204488,1752905446137,-2019.14,0.0002,2]
[373204489,1752905446147,-7356.9806417,0.00020029,2]
[373204490,1752905446156,-151.0,0.00020058,2]
[373204491,1752905446166,-151.0,0.00020058,2]
[373204492,1752905446175,-151.0,0.00020058,2]
[373204493,1752905446185,-500.0,0.00020072,2]
[373204494,1752905446194,-1959.98390786,0.00020075,2]
[373204495,1752905446205,-725.3434561,0.00020123,2]
[373204496,1752905446214,-360.0,0.00020124,2]
[373204497,1752905446224,-388.223308,0.00020187,2]
[373204498,1752905446234,-4760.15730783,0.0002021,2]
[373204499,1752905446243,-1308.88,0.00020273,2]
[373204500,1752905446253,-1089.26,0.00020273,2]
[373204501,1752905446262,-460.0,0.00020273,2]
[373204502,1752905446271,-460.0,0.00020273,2]
[373204503,1752905446281,-548.26,0.00020273,2]
[373204504,1752905446291,-497.33,0.00020273,2]
[373204505,1752905446301,-1127.2,0.00020273,2]
[373204506,1752905446311,-843.68,0.00020273,2]
[373204507,1752905446321,-3245.34,0.00020273,2]
[373204508,1752905446331,-460.0,0.00020273,2]
[373204509,1752905446341,-460.0,0.00020273,2]
[373204510,1752905446350,-2105.14,0.00020273,2]
[373204511,1752905446360,-796.7,0.00020273,2]
[373204512,1752905446369,-1080.79,0.00020273,2]
[373204513,1752905446380,-460.0,0.00020273,2]
[373204514,1752905446390,-4129.85,0.00020273,2]
[373204515,1752905446399,-1314.16,0.00020273,2]
[373204516,1752905446409,-460.0,0.00020273,2]
[373204517,1752905446420,-921.73,0.00020273,2]
[373204518,1752905446431,-491.64,0.00020273,2]
[373204519,1752905446444,-460.0,0.00020273,2]
[373204520,1752905446454,-460.0,0.00020273,2]
[373204521,1752905446464,-460.0,0.00020273,2]
[373204522,1752905446474,-1882.27,0.00020273,2]
[373204523,1752905446485,-629.48,0.00020273,2]
[373204524,1752905446498,-460.0,0.00020273,2]
[373204525,1752905446507,-460.0,0.00020273,2]
[373204526,1752905446518,-466.23,0.00020273,2]
[373204528,1752905446527,-1409.13,0.00020273,2]
[373204530,1752905446536,-496.67,0.00020273,2]
[373204532,1752905446548,-2109.32,0.00020273,2]
[373204534,1752905446558,-460.0,0.00020273,2]
[373204535,1752905446567,-2616.74,0.00020273,2]
[373204536,1752905446576,-824.43,0.00020273,2]
[373204538,1752905446586,-506.58,0.00020273,2]
[373204539,1752905446595,-2019.14,0.00020273,2]
[373204540,1752905446604,-500.0,0.00020346,2]
[373204541,1752905446614,-7356.9806417,0.0002037,2]
[373204542,1752905446623,-6635.69935502,0.00020386,2]
[373204543,1752905446633,-151.0,0.00020403,2]
[373204544,1752905446642,-317.0,0.00020466,3]
[373204545,1752905446652,-182.08849996,0.00020483,2]
[373204546,1752905446661,-151.0,0.00020486,2]
[373204547,1752905446670,-151.0,0.00020486,2]
[373204548,1752905446680,-151.0,0.00020486,2]
[373204549,1752905446689,-151.0,0.00020486,2]
[373204550,1752905446699,-151.0,0.00020486,2]
[373204551,1752905446709,-4760.15730783,0.00020486,3]
[373204552,1752905446719,-151.0,0.000205,3]
[373204553,1752905446728,-151.0,0.00020547,2]
[373204554,1752905446738,-234.571149,0.00020547,2]
[373204555,1752905446747,-151.0,0.00020547,2]
[373204556,1752905446757,-151.0,0.00020547,2]
[373204557,1752905446767,-198.453047,0.00020547,2]
[373204558,1752905446776,-386.078219,0.00020547,2]
[373204559,1752905446785,-386.078219,0.00020547,2]
[373204560,1752905446795,-1308.88,0.00020547,2]
[373204561,1752905446805,-1089.26,0.00020547,2]
[373204562,1752905446815,-460.0,0.00020547,2]
[373204563,1752905446832,-179.91391217,0.00020547,2]
[373204564,1752905446845,-548.26,0.00020547,2]
[373204565,1752905446855,-497.33,0.00020547,2]
[373204566,1752905446865,-1127.2,0.00020547,2]
[373204568,1752905446875,-151.536565,0.00020547,2]
[373204570,1752905446884,-151.0,0.00020547,2]
[373204572,1752905446894,-151.0,0.00020547,2]
[373204574,1752905446904,-843.68,0.00020547,2]
[373204575,1752905446913,-3245.34,0.00020547,2]
[373204576,1752905446923,-225.51983565,0.00020547,2]
[373204577,1752905446932,-460.0,0.00020547,2]
[373204578,1752905446944,-2105.14,0.00020547,2]
[373204579,1752905446954,-796.7,0.00020547,2]
[373204580,1752905446963,-1080.79,0.00020547,2]
[373204581,1752905446973,-211.06105231,0.00020547,2]
[373204582,1752905446983,-151.0,0.00020547,2]
[373204583,1752905446992,-151.0,0.00020547,2]
[373204584,1752905447001,-4129.85,0.00020547,2]
[373204585,1752905447011,-1314.16,0.00020547,2]
[373204586,1752905447021,-1201.486897,0.00020547,2]
[373204587,1752905447030,-460.0,0.00020547,2]
[373204588,1752905447041,-1201.486897,0.00020547,2]
[373204589,1752905447188,-921.73,0.00020547,2]
[373204590,1752905447199,-491.64,0.00020547,2]
[373204591,1752905447210,-460.0,0.00020547,2]
[373204592,1752905447220,-460.0,0.00020547,2]
[373204593,1752905447230,-460.0,0.00020547,2]
[373204594,1752905447240,-1882.27,0.00020547,2]
[373204595,1752905447250,-629.48,0.00020547,2]
[373204596,1752905447260,-477.7346262,0.00020547,2]
[373204597,1752905447270,-460.0,0.00020547,2]
[373204598,1752905447279,-151.0,0.00020547,2]
[373204599,1752905447288,-151.0,0.00020547,2]
[373204600,1752905447302,-151.0,0.00020547,2]
[373204601,1752905447313,-466.23,0.00020547,2]
[373204602,1752905447322,-1409.13,0.00020547,2]
[373204603,1752905447332,-496.67,0.00020547,2]
[373204604,1752905447343,-2109.32,0.00020547,2]
[373204605,1752905447353,-460.0,0.00020547,2]
[373204606,1752905447363,-2616.74,0.00020547,2]
[373204607,1752905447373,-824.43,0.00020547,2]
[373204608,1752905447382,-506.58,0.00020547,2]
[373204609,1752905447392,-2019.14,0.00020547,2]
[373204610,1752905447402,-161.9457052,0.00020603,2]
[373204611,1752905447415,-577.1515091,0.00020603,2]
[373204612,1752905447425,-178.1115364,0.00020603,2]
[373204613,1752905447435,-577.1515091,0.00020603,2]
[373204614,1752905447445,-178.1115364,0.00020603,2]
[373204615,1752905447459,-159.8125086,0.00020603,2]
[373204616,1752905447469,-500.0,0.0002062,2]
[373204617,1752905447478,-255.79144,0.0002063,3]
[373204618,1752905447489,-151.0,0.00020655,2]
[373204619,1752905447499,-3801.642,0.00020655,2]
[373204620,1752905447510,-151.0,0.00020655,2]
[373204621,1752905447519,-207.4,0.00020655,2]
[373204622,1752905447529,-151.0,0.00020655,2]
[373204623,1752905447539,-151.0,0.00020655,2]
[373204624,1752905447550,-151.0,0.00020655,2]
[373204625,1752905447559,-151.0,0.00020655,2]
[373204626,1752905447569,-151.0,0.00020655,2]
[373204627,1752905447579,-151.0,0.00020655,2]
[373204628,1752905447589,-151.0,0.00020655,2]
[373204629,1752905447598,-151.0,0.00020655,2]
[373204630,1752905447608,-151.0,0.00020655,2]
[373204631,1752905447619,-151.0,0.00020655,2]
[373204632,1752905447629,-151.0,0.00020655,2]
[373204633,1752905447639,-151.0,0.00020655,2]
[373204634,1752905447648,-151.0,0.00020655,2]
[373204635,1752905447658,-151.0,0.00020655,2]
[373204636,1752905447667,-151.0,0.00020655,2]
[373204637,1752905447677,-151.0,0.00020655,2]
[373204638,1752905447687,-151.0,0.00020655,2]
[373204639,1752905447698,-151.0,0.00020655,2]
[373204640,1752905447708,-151.0,0.00020655,2]
[373204641,1752905447718,-25000.0,0.00020655,2]
[373204642,1752905447729,-716.45673598,0.00020655,2]
[373204643,1752905447739,-460.0,0.00020672,2]
[373204644,1752905447749,-150.0,0.000207,2]
[373204645,1752905447759,-3942.302754,0.0002071,2]
[373204646,1752905447769,-7356.9806417,0.00020748,2]
[373204647,1752905447779,-4760.15730783,0.00020762,3]
[373204648,1752905447789,-255.79144,0.00020763,2]
[373204649,1752905447800,-305.40284297,0.00020765,2]
[373204650,1752905447810,-466.3788753,0.00020798,2]
[373204651,1752905447820,-700.0,0.00020808,2]
[373204652,1752905447830,-178.585793,0.00020821,2]
[373204653,1752905447840,-178.585793,0.00020821,2]
[373204654,1752905447850,-1308.88,0.00020821,2]
[373204655,1752905447859,-1089.26,0.00020821,2]
[373204656,1752905447871,-460.0,0.00020821,2]
[373204657,1752905447881,-548.26,0.00020821,2]
[373204658,1752905447890,-497.33,0.00020821,2]
[373204659,1752905447900,-1127.2,0.00020821,2]
[373204660,1752905447910,-843.68,0.00020821,2]
[373204661,1752905447920,-3245.34,0.00020821,2]
[373204662,1752905447930,-460.0,0.00020821,2]
[373204663,1752905447940,-2105.14,0.00020821,2]
[373204664,1752905447950,-796.7,0.00020821,2]
[373204665,1752905447960,-1080.79,0.00020821,2]
[373204666,1752905447970,-4129.85,0.00020821,2]
[373204667,1752905447980,-1314.16,0.00020821,2]
[373204668,1752905447990,-460.0,0.00020821,2]
[373204669,1752905447999,-921.73,0.00020821,2]
[373204670,1752905448009,-491.64,0.00020821,2]
[373204671,1752905448019,-460.0,0.00020821,2]
[373204672,1752905448029,-460.0,0.00020821,2]
[373204673,1752905448040,-460.0,0.00020821,2]
[373204674,1752905448051,-1882.27,0.00020821,2]
[373204675,1752905448061,-629.48,0.00020821,2]
[373204676,1752905448071,-460.0,0.00020821,2]
[373204677,1752905448082,-466.23,0.00020821,2]
[373204678,1752905448092,-496.67,0.00020821,2]
[373204679,1752905448102,-1409.13,0.00020821,2]
[373204680,1752905448111,-2109.32,0.00020821,2]
[373204681,1752905448121,-460.0,0.00020821,2]
[373204682,1752905448131,-2616.74,0.00020821,2]
[373204683,1752905448140,-824.43,0.00020821,2]
[373204684,1752905448150,-506.58,0.00020821,2]
[373204685,1752905448160,-2019.14,0.00020821,2]
[373204686,1752905448172,-517.294,0.00020837,2]
[373204687,1752905448182,-500.0,0.00020894,2]
[373204688,1752905448196,-6635.69935498,0.00020933,2]
[373204689,1752905448207,-3000.0,0.00021,2]
[373204690,1752905448217,-3000.0,0.0002101,2]
[373204691,1752905448226,-3000.0,0.0002102,2]
[373204692,1752905448236,-151.0,0.0002102,2]
[373204693,1752905448246,-203.956326,0.0002102,2]
[373204694,1752905448255,-203.956326,0.0002102,2]
[373204695,1752905448265,-200.919079,0.0002102,2]
[373204696,1752905448274,-200.919079,0.0002102,2]
[373204697,1752905448284,-160.429221,0.0002102,2]
[373204698,1752905448296,-160.429221,0.0002102,2]
[373204699,1752905448306,-207.090637,0.0002102,2]
[373204700,1752905448316,-224.2,0.0002102,2]
[373204701,1752905448325,-3000.0,0.0002103,2]
[373204702,1752905448335,-4760.15730783,0.00021038,4]
[373204703,1752905448345,-3000.0,0.0002104,2]
[373204704,1752905448355,-3000.0,0.0002105,2]
[373204705,1752905448364,-3000.0,0.0002106,2]
[373204706,1752905448374,-858.7802972,0.00021068,2]
[373204707,1752905448384,-3000.0,0.0002107,2]
[373204708,1752905448394,-7356.9806417,0.0002107,2]
[373204709,1752905448404,-3000.0,0.0002108,2]
[373204710,1752905448414,-3000.0,0.0002109,2]
[373204711,1752905448423,-151.0,0.00021095,2]
[373204712,1752905448433,-151.208484,0.00021095,2]
[373204713,1752905448443,-151.0,0.00021095,2]
[373204714,1752905448458,-151.0,0.00021095,2]
[373204715,1752905448468,-151.0,0.00021095,2]
[373204716,1752905448478,-179.790355,0.00021095,2]
[373204717,1752905448488,-1308.88,0.00021095,2]
[373204718,1752905448498,-1089.26,0.00021095,2]
[373204719,1752905448508,-460.0,0.00021095,2]
[373204720,1752905448518,-410.668745,0.00021095,2]
[373204721,1752905448528,-410.668745,0.00021095,2]
[373204722,1752905448538,-548.26,0.00021095,2]
[373204723,1752905448548,-151.0,0.00021095,2]
[373204724,1752905448557,-497.33,0.00021095,2]
[373204725,1752905448567,-1127.2,0.00021095,2]
[373204726,1752905448578,-843.68,0.00021095,2]
[373204727,1752905448588,-3245.34,0.00021095,2]
[373204728,1752905448597,-460.0,0.00021095,2]
[373204729,1752905448607,-2105.14,0.00021095,2]
[373204730,1752905448616,-796.7,0.00021095,2]
[373204731,1752905448626,-1080.79,0.00021095,2]
[373204732,1752905448635,-4129.85,0.00021095,2]
[373204733,1752905448644,-1314.16,0.00021095,2]
[373204734,1752905448654,-460.0,0.00021095,2]
[373204735,1752905448664,-921.73,0.00021095,2]
[373204736,1752905448674,-491.64,0.00021095,2]
[373204737,1752905448684,-460.0,0.00021095,2]
[373204738,1752905448694,-460.0,0.00021095,2]
[373204739,1752905448703,-460.0,0.00021095,2]
[373204740,1752905448713,-1882.27,0.00021095,2]
[373204741,1752905448723,-629.48,0.00021095,2]
[373204742,1752905448733,-334.3730551,0.00021095,2]
[373204743,1752905448743,-466.23,0.00021095,2]
[373204744,1752905448753,-496.67,0.00021095,2]
[373204745,1752905448763,-1409.13,0.00021095,2]
[373204746,1752905448772,-2109.32,0.00021095,2]
[373204747,1752905448782,-460.0,0.00021095,2]
[373204748,1752905448793,-2616.74,0.00021095,2]
[373204749,1752905448804,-824.43,0.00021095,2]
[373204750,1752905448814,-506.58,0.00021095,2]
[373204751,1752905448824,-2019.14,0.00021095,2]
[373204752,1752905448834,-3000.0,0.000211,2]
[373204753,1752905448844,-3000.0,0.0002111,2]
[373204754,1752905448854,-151.0,0.00021111,2]
[373204755,1752905448864,-253.751263,0.00021111,2]
[373204756,1752905448873,-253.751263,0.00021111,2]
[373204757,1752905448883,-151.0,0.00021111,2]
[373204758,1752905448893,-151.0,0.00021111,2]
[373204759,1752905448902,-228.289233,0.00021111,2]
[373204760,1752905448913,-228.289233,0.00021111,2]
[373204761,1752905448924,-309.301731,0.00021111,2]
[373204762,1752905448934,-309.301731,0.00021111,2]
[373204763,1752905448945,-151.0,0.00021111,2]
[373204764,1752905448958,-151.0,0.00021111,2]
[373204765,1752905448968,-151.0,0.00021111,2]
[373204766,1752905448978,-3000.0,0.0002112,2]
[373204767,1752905448989,-3000.0,0.0002113,2]
[373204768,1752905449000,-800.0,0.00021132,2]
[373204769,1752905449010,-3000.0,0.0002114,2]
[373204770,1752905449020,-3000.0,0.0002115,2]
[373204771,1752905449030,-3000.0,0.0002116,2]
[373204772,1752905449040,-265.10282225,0.00021168,2]
[373204773,1752905449051,-3000.0,0.0002117,2]
[373204774,1752905449060,-3000.0,0.0002118,2]
[373204775,1752905449070,-3000.0,0.0002119,2]
[373204776,1752905449080,-971.176,0.00021197,2]
[373204777,1752905449090,-3000.0,0.000212,2]
[373204778,1752905449100,-151.0,0.00021203,2]
[373204779,1752905449110,-151.0,0.00021203,2]
[373204780,1752905449119,-151.0,0.00021203,2]
[373204781,1752905449129,-217.40428983,0.00021203,2]
[373204782,1752905449139,-25000.0,0.00021203,2]
[373204783,1752905449149,-3000.0,0.0002121,2]
[373204784,1752905449158,-500.0,0.00021212,2]
[373204785,1752905449168,-3000.0,0.0002122,2]
[373204786,1752905449178,-560.0,0.0002122,2]
[373204787,1752905449188,-416.784,0.00021225,2]
[373204788,1752905449198,-3000.0,0.0002123,2]
[373204789,1752905449209,-3000.0,0.0002124,2]
[373204790,1752905449219,-3000.0,0.0002125,2]
[373204791,1752905449229,-3000.0,0.0002126,2]
[373204792,1752905449239,-8485.86481382,0.00021269,2]
[373204793,1752905449250,-3000.0,0.0002127,2]
[373204794,1752905449260,-3000.0,0.0002128,2]
[373204795,1752905449271,-3000.0,0.0002129,2]
[373204796,1752905449375,-3000.0,0.000213,2]
[373204797,1752905449386,-151.0,0.000213,2]
[373204798,1752905449395,-151.0,0.000213,2]
[373204799,1752905449405,-151.0,0.000213,2]
[373204800,1752905449415,-151.0,0.000213,2]
[373204801,1752905449424,-151.0,0.000213,2]
[373204802,1752905449434,-151.0,0.000213,2]
[373204803,1752905449444,-3000.0,0.0002131,2]
[373204804,1752905449463,-4760.15730783,0.00021314,5]
[373204805,1752905449484,-3000.0,0.0002132,2]
[373204806,1752905449495,-151.0,0.0002132,2]
[373204807,1752905449504,-151.0,0.0002132,2]
[373204808,1752905449516,-151.0,0.0002132,2]
[373204809,1752905449537,-151.0,0.0002132,2]
[373204810,1752905449551,-151.0,0.0002132,2]
[373204811,1752905449561,-3000.0,0.0002133,2]
[373204812,1752905449571,-3000.0,0.0002134,2]
[373204813,1752905449580,-337.18163513,0.00021342,2]
[373204814,1752905449590,-7356.9806417,0.00021345,2]
[373204815,1752905449599,-3000.0,0.0002135,2]
[373204816,1752905449609,-151.0,0.0002135,2]
[373204817,1752905449619,-151.0,0.0002135,2]
[373204818,1752905449628,-1201.486897,0.0002135,2]
[373204819,1752905449638,-1201.486897,0.0002135,2]
[373204820,1752905449647,-3000.0,0.0002136,2]
[373204821,1752905449657,-800.0,0.00021368,2]
[373204822,1752905449666,-151.0,0.00021369,2]
[373204823,1752905449676,-293.224357,0.00021369,2]
[373204824,1752905449686,-386.078219,0.00021369,2]
[373204825,1752905449695,-386.078219,0.00021369,2]
[373204826,1752905449705,-1308.88,0.00021369,2]
[373204827,1752905449715,-1089.26,0.00021369,2]
[373204828,1752905449724,-460.0,0.00021369,2]
[373204829,1752905449734,-548.26,0.00021369,2]
[373204830,1752905449744,-497.33,0.00021369,2]
[373204831,1752905449754,-1127.2,0.00021369,2]
[373204832,1752905449764,-843.68,0.00021369,2]
[373204833,1752905449773,-3245.34,0.00021369,2]
[373204834,1752905449783,-520.39,0.00021369,2]
[373204835,1752905449792,-2105.14,0.00021369,2]
[373204836,1752905449803,-796.7,0.00021369,2]
[373204837,1752905449812,-1080.79,0.00021369,2]
[373204838,1752905449822,-4129.85,0.00021369,2]
[373204839,1752905449831,-1314.16,0.00021369,2]
[373204840,1752905449841,-460.0,0.00021369,2]
[373204841,1752905449852,-921.73,0.00021369,2]
[373204842,1752905449862,-491.64,0.00021369,2]
[373204843,1752905449872,-324.6,0.00021369,2]
[373204844,1752905449881,-460.0,0.00021369,2]
[373204845,1752905449890,-460.0,0.00021369,2]
[373204846,1752905449900,-1882.27,0.00021369,2]
[373204847,1752905449909,-629.48,0.00021369,2]
[373204848,1752905449919,-466.23,0.00021369,2]
[373204849,1752905449928,-496.67,0.00021369,2]
[373204850,1752905449938,-1409.13,0.00021369,2]
[373204851,1752905449947,-2109.32,0.00021369,2]
[373204852,1752905449957,-460.0,0.00021369,2]
[373204853,1752905449967,-2616.74,0.00021369,2]
[373204854,1752905449976,-824.43,0.00021369,2]
[373204855,1752905449987,-506.58,0.00021369,2]
[373204856,1752905449996,-2019.14,0.00021369,2]
[373204857,1752905450006,-3000.0,0.0002137,2]
[373204858,1752905450015,-3000.0,0.0002138,2]
[373204859,1752905450025,-3000.0,0.0002139,2]
[373204860,1752905450035,-800.0,0.00021396,2]
[373204861,1752905450045,-3000.0,0.000214,2]
[373204862,1752905450055,-3000.0,0.0002141,2]
[373204863,1752905450064,-3000.0,0.0002142,2]
[373204864,1752905450074,-725.3434561,0.00021422,2]
[373204865,1752905450083,-159.8125085,0.00021425,2]
[373204866,1752905450092,-577.1515091,0.00021425,2]
[373204867,1752905450102,-178.1115364,0.00021425,2]
[373204868,1752905450111,-358.6756731,0.00021425,2]
[373204869,1752905450120,-577.1515091,0.00021425,2]
[373204870,1752905450130,-577.1515091,0.00021425,2]
[373204871,1752905450140,-577.1515091,0.00021425,2]
[373204872,1752905450149,-3000.0,0.0002143,2]
[373204873,1752905450158,-3167.895784,0.0002144,2]
[373204874,1752905450168,-823.0,0.00021454,2]
[373204875,1752905450178,-160.33965087,0.00021479,2]
[373204876,1752905450188,-6635.69935498,0.00021481,2]
[373204877,1752905450198,-255.79144,0.00021492,3]
[373204878,1752905450207,-7356.9806417,0.00021492,2]
[373204879,1752905450217,-1292.0,0.00021517,2]
[373204880,1752905450227,-250.0,0.00021571,2]
[373204881,1752905450238,-4760.15730783,0.0002159,5]
[373204882,1752905450247,-755.9589893,0.00021616,2]
[373204883,1752905450258,-151.0,0.00021643,2]
[373204884,1752905450268,-151.0,0.00021643,2]
[373204885,1752905450278,-151.282927,0.00021643,2]
[373204886,1752905450288,-151.0,0.00021643,2]
[373204887,1752905450297,-151.0,0.00021643,2]
[373204888,1752905450307,-200.399393,0.00021643,2]
[373204889,1752905450317,-200.399393,0.00021643,2]
[373204890,1752905450327,-151.0,0.00021643,2]
[373204891,1752905450336,-1308.88,0.00021643,2]
[373204892,1752905450346,-1089.26,0.00021643,2]
[373204893,1752905450355,-460.0,0.00021643,2]
[373204894,1752905450364,-548.26,0.00021643,2]
[373204895,1752905450375,-497.33,0.00021643,2]
[373204896,1752905450384,-1127.2,0.00021643,2]
[373204897,1752905450394,-843.68,0.00021643,2]
[373204898,1752905450405,-3245.34,0.00021643,2]
[373204899,1752905450414,-2105.14,0.00021643,2]
[373204900,1752905450425,-796.7,0.00021643,2]
[373204901,1752905450435,-1080.79,0.00021643,2]
[373204902,1752905450449,-4129.85,0.00021643,2]
[373204903,1752905450459,-1314.16,0.00021643,2]
[373204904,1752905450468,-460.0,0.00021643,2]
[373204905,1752905450478,-921.73,0.00021643,2]
[373204906,1752905450488,-491.64,0.00021643,2]
[373204907,1752905450498,-460.0,0.00021643,2]
[373204908,1752905450508,-254.13861646,0.00021643,2]
[373204909,1752905450519,-1882.27,0.00021643,2]
[373204910,1752905450530,-629.48,0.00021643,2]
[373204911,1752905450540,-466.23,0.00021643,2]
[373204912,1752905450551,-496.67,0.00021643,2]
[373204913,1752905450562,-1409.13,0.00021643,2]
[373204914,1752905450571,-2109.32,0.00021643,2]
[373204915,1752905450581,-460.0,0.00021643,2]
[373204916,1752905450591,-2616.74,0.00021643,2]
[373204917,1752905450600,-824.43,0.00021643,2]
[373204918,1752905450611,-506.58,0.00021643,2]
[373204919,1752905450621,-2019.14,0.00021643,2]
[373204920,1752905450631,-7356.98064173,0.00021654,2]
[373204921,1752905450640,-151.0,0.000217,4]
[373204922,1752905450650,-800.0,0.00021732,2]
[373204923,1752905450660,-800.0,0.00021743,2]
[373204924,1752905450670,-165.886091,0.00021751,2]
[373204925,1752905450680,-203.956326,0.00021751,2]
[373204926,1752905450689,-203.956326,0.00021751,2]
[373204927,1752905450699,-200.919079,0.00021751,2]
[373204928,1752905450708,-200.919079,0.00021751,2]
[373204929,1752905450718,-160.429221,0.00021751,2]
[373204930,1752905450728,-160.429221,0.00021751,2]
[373204931,1752905450737,-25000.0,0.00021751,2]
[373204932,1752905450747,-660.0,0.00021768,2]
[373204933,1752905450756,-160.33965087,0.00021781,2]
[373204934,1752905450765,-160.0,0.00021785,3]
[373204935,1752905450774,-150.0,0.00021799,2]
[373204936,1752905450785,-203.428,0.00021799,2]
[373204937,1752905450794,-175.61,0.00021799,2]
[373204938,1752905450804,-500.0,0.00021827,2]
[373204939,1752905450814,-500.0,0.00021827,2]
[373204940,1752905450823,-600.0,0.00021829,2]
[373204941,1752905450832,-150.074,0.00021855,2]
[373204942,1752905450842,-649.403,0.00021855,2]
[373204943,1752905450851,-2156.0,0.00021855,2]
[373204944,1752905451067,-255.79144,0.0002186,5]
[373204945,1752905451078,-4760.15730783,0.00021866,6]
[373204946,1752905451088,-700.0,0.00021904,2]
[373204947,1752905451097,-178.585793,0.00021917,2]
[373204948,1752905451107,-178.585793,0.00021917,2]
[373204949,1752905451117,-1308.88,0.00021917,2]